[Event "British Championship 2024"]
[Site "Hull"]
[Date "2024.07.31"]
[Round "1.21"]
[White "Murawski, Jan"]
[Black "Wells, Peter K"]
[Result "0-1"]
[Annotator "RC"]
[ECO "E21"]
[WhiteElo "2134"]
[BlackElo "2354"]
[PlyCount "114"]
[EventDate "2024.07.31"]
[EventCountry "GBR"]
[SourceTitle "playchess.com"]
[Source "ChessBase"]
[SourceQuality "1"]
[TimeControl "40/5400+30:1800+30"]

1. d4 {[%emt 0:00:06]} Nf6 {[%emt 0:00:09]} 2. c4 {[%emt 0:00:04]} e6 {[%emt 0:00:05]} 3. Nc3 {[%emt 0:00:05]} Bb4 {[%emt 0:00:05]} 4. Nf3 {[%emt 0:00:06]} b6 {[%emt 0:01:00]} 5. g3 {[%emt 0:00:11]} Bxc3+ {[%emt 0:01:29]} 6. bxc3 {[%emt 0:00:02]} Bb7 {[%emt 0:00:05]} 7. Bg2 {[%emt 0:00:10]} O-O {[%emt 0:00:49]} 8. O-O {[%emt 0:00:06]} d6 {[%emt 0:00:20]} 9. a4 {[%emt 0:00:08]} h6 {[%emt 0:01:57]} 10. Ne1 {[%emt 0:08:43]} Bxg2 {[%emt 0:03:07]} 11. Nxg2 {[%emt 0:00:17]} Nc6 {[%emt 0:00:47]} 12. Qd3 {[%emt 0:06:13]} d5 {[%emt 0:24:22]} 13. f3 {[%emt 0:13:15]} Na5 {[%emt 0:12:25]} 14. Ne3 {[%emt 0:10:29]} Re8 {[%emt 0:07:14]} 15. cxd5 {[%emt 0:11:14]} exd5 {[%emt 0:00:30]} 16. c4 {[%emt 0:00:30]} c5 {[%emt 0:06:42]} 17. Bb2 {[%emt 0:21:14]} Qe7 {[%emt 0:08:23]} 18. Nxd5 {[%emt 0:09:10]} Nxd5 {[%emt 0:00:09]} 19. cxd5 {[%emt 0:00:02]} Qxe2 {[%emt 0:00:37]} 20. Qc3 {[%emt 0:01:43]} Re3 {[%emt 0:11:37]} 21. Rae1 {[%emt 0:02:45]} Rxc3 {[%emt 0:00:59]} 22. Rxe2 {[%emt 0:00:01]} Rd3 {[%emt 0:00:06]} 23. d6 {[%emt 0:09:07]} Rd8 {[%emt 0:00:21]} 24. dxc5 {[%emt 0:00:22]} bxc5 {[%emt 0:01:13]} 25. Re7 {[%emt 0:00:02]} Nc6 {[%emt 0:10:15]} 26. Rc7 {[%emt 0:00:14]} R8xd6 {[%emt 0:00:07]} 27. f4 {[%emt 0:01:50]} c4 {[%emt 0:06:01]} 28. Be5 {[%emt 0:02:15]} Re6 {[%emt 0:00:06]} 29. Rc1 {[%emt 0:00:25]} Nxe5 {[%emt 0:00:23]} 30. fxe5 {[%emt 0:00:08]} Rxe5 {[%emt 0:00:05]} 31. Rc8+ {[%emt 0:00:46]} Kh7 {[%emt 0:00:04]} 32. R8xc4 {[%emt 0:00:03]} Re2 {[%emt 0:01:02]} 33. R4c2 {[%emt 0:00:08]} Rxc2 {[%emt 0:01:08]} 34. Rxc2 {[%emt 0:00:01]} Ra3 {[%emt 0:01:10]} 35. Rc7 {[%emt 0:01:33]} Rxa4 {[%emt 0:00:10]} 36. Rxf7 {[%emt 0:00:02]} Ra2 {[%emt 0:01:27]} 37. g4 {[%emt 0:00:51]} a5 {[%emt 0:00:52]} 38. Ra7 {[%emt 0:00:13]} Kg6 {[%emt 0:00:10]} 39. h3 {[%emt 0:00:48]} Kf6 {[%emt 0:00:21]} 40. Kf1 {[%emt 0:00:15]} g6 {[%emt 0:01:52]} 41. h4 {[%emt 0:31:10]} a4 {[%emt 0:13:15]} 42. Ra6+ {[%emt 0:00:00]} Kf7 {[%emt 0:00:05]} 43. Ra7+ {[%emt 0:00:00]} Ke8 {[%emt 0:03:41]} 44. Ra6 {[%emt 0:00:00]} a3 {[%emt 0:01:34]} 45. Kg1 {[%emt 0:00:00]} Kd8 {[%emt 0:01:16]} 46. Ra8+ {[%emt 0:00:00]} Kc7 {[%emt 0:00:46]} 47. Ra7+ {[%emt 0:00:00]} Kb6 {[%emt 0:02:30]} 48. Ra8 {[%emt 0:00:00]} Kb5 {[%emt 0:00:39]} 49. Ra7 {[%emt 0:00:00]} Kb4 {[%emt 0:00:18]} 50. Ra6 {[%emt 0:00:00]} Rb2 {[%emt 0:02:34]} 51. Rxg6 {[%emt 0:00:00]} a2 {[%emt 0:00:07]} 52. Ra6 {[%emt 0:00:00]} Rb1+ {[%emt 0:00:16]} 53. Kg2 {[%emt 0:00:00]} a1=Q {[%emt 0:00:07]} 54. Rxa1 {[%emt 0:00:00]} Rxa1 {[%emt 0:00:04]} 55. g5 {[%emt 0:00:00]} hxg5 {[%emt 0:00:07]} 56. h5 {[%emt 0:00:00]} Ra3 {[%emt 0:00:12]} 57. h6 {[%emt 0:00:00]} Ra6 {[%emt 0:00:04]} 0-1

[Event "British Championship 2024"]
[Site "Hull"]
[Date "2024.07.31"]
[Round "1.22"]
[White "Czopor, Maciej"]
[Black "Lentzos, Ioanis"]
[Result "1/2-1/2"]
[Annotator "RC"]
[ECO "B41"]
[WhiteElo "2361"]
[BlackElo "2119"]
[PlyCount "62"]
[EventDate "2024.07.31"]
[EventCountry "GBR"]
[SourceTitle "playchess.com"]
[Source "ChessBase"]
[SourceQuality "1"]
[TimeControl "40/5400+30:1800+30"]

1. e4 {[%emt 0:00:04]} c5 {[%emt 0:00:03]} 2. Nf3 {[%emt 0:00:11]} e6 {[%emt 0:00:04]} 3. d4 {[%emt 0:00:04]} cxd4 {[%emt 0:00:04]} 4. Nxd4 {[%emt 0:00:05]} a6 {[%emt 0:00:05]} 5. c4 {[%emt 0:00:11]} Nf6 {[%emt 0:00:08]} 6. Nc3 {[%emt 0:00:05]} Qc7 {[%emt 0:00:08]} 7. Be2 {[%emt 0:01:16]} Bb4 {[%emt 0:00:14]} 8. Nc2 {[%emt 0:00:41]} Bd6 {[%emt 0:00:14]} 9. Be3 {[%emt 0:03:51]} O-O {[%emt 0:00:15]} 10. h3 {[%emt 0:11:49]} b6 {[%emt 0:00:26]} 11. O-O {[%emt 0:01:01]} Bb7 {[%emt 0:00:08]} 12. Qd3 {[%emt 0:08:29]} Be7 {[%emt 0:01:01]} 13. g4 {[%emt 0:08:43]} d6 {[%emt 0:10:19]} 14. f4 {[%emt 0:04:11]} Nbd7 {[%emt 0:04:55]} 15. g5 {[%emt 0:05:03]} Ne8 {[%emt 0:01:12]} 16. b4 {[%emt 0:07:07]} Rc8 {[%emt 0:16:21]} 17. Bd2 {[%emt 0:00:08]} g6 {[%emt 0:12:46]} 18. Ne3 {[%emt 0:04:07]} f5 {[%emt 0:18:33]} 19. exf5 {[%emt 0:05:52]} gxf5 {[%emt 0:00:20]} 20. h4 {[%emt 0:03:09]} d5 {[%emt 0:12:38]} 21. cxd5 {[%emt 0:00:28]} Bxb4 {[%emt 0:04:27]} 22. dxe6 {[%emt 0:10:58]} Ne5 {[%emt 0:03:08]} 23. fxe5 {[%emt 0:00:30]} Qxe5 {[%emt 0:08:57]} 24. Rxf5 {[%emt 0:04:06]} Qg3+ {[%emt 0:00:51]} 25. Kf1 {[%emt 0:00:12]} Nd6 {[%emt 0:00:17]} 26. Rf6 {[%emt 0:01:14]} Bxc3 {[%emt 0:03:18]} 27. Bxc3 {[%emt 0:00:15]} Ne4 {[%emt 0:00:11]} 28. Ng4 {[%emt 0:02:08]} Nd2+ {[%emt 0:00:56]} 29. Bxd2 {[%emt 0:01:02]} Bg2+ {[%emt 0:00:07]} 30. Kg1 {[%emt 0:00:01]} Bf3+ {[%emt 0:00:08]} 31. Kf1 {[%emt 0:00:05]} Bg2+ {[%emt 0:00:05]} 1/2-1/2

[Event "British Championship 2024"]
[Site "Hull"]
[Date "2024.07.31"]
[Round "1.23"]
[White "Verma, Aditya"]
[Black "Derakhshani, Borna"]
[Result "0-1"]
[Annotator "RC"]
[ECO "B51"]
[WhiteElo "2118"]
[BlackElo "2355"]
[PlyCount "112"]
[EventDate "2024.07.31"]
[EventCountry "GBR"]
[SourceTitle "playchess.com"]
[Source "ChessBase"]
[SourceQuality "1"]
[TimeControl "40/5400+30:1800+30"]

1. e4 {[%emt 0:00:00]} c5 {[%emt 0:03:26]} 2. Nf3 {[%emt 0:00:08]} d6 {[%emt 0:00:03]} 3. Bb5+ {[%emt 0:00:05]} Nd7 {[%emt 0:00:09]} 4. O-O {[%emt 0:00:17]} a6 {[%emt 0:01:10]} 5. Bd3 {[%emt 0:00:32]} g6 {[%emt 0:02:10]} 6. a4 {[%emt 0:00:54]} Bg7 {[%emt 0:04:00]} 7. c3 {[%emt 0:01:08]} Ne5 {[%emt 0:09:33]} 8. Be2 {[%emt 0:09:15]} Nxf3+ {[%emt 0:05:33]} 9. Bxf3 {[%emt 0:00:04]} e5 {[%emt 0:03:21]} 10. Na3 {[%emt 0:04:20]} Be6 {[%emt 0:04:24]} 11. Re1 {[%emt 0:03:27]} Ne7 {[%emt 0:04:47]} 12. d3 {[%emt 0:11:38]} O-O {[%emt 0:04:57]} 13. Be3 {[%emt 0:03:18]} Nc6 {[%emt 0:03:20]} 14. Nc2 {[%emt 0:04:28]} Rc8 {[%emt 0:05:52]} 15. Ra3 {[%emt 0:08:43]} Qb6 {[%emt 0:14:29]} 16. b4 {[%emt 0:04:32]} f5 {[%emt 0:02:56]} 17. a5 {[%emt 0:03:41]} Qd8 {[%emt 0:03:43]} 18. exf5 {[%emt 0:14:07]} cxb4 {[%emt 0:02:46]} 19. Nxb4 {[%emt 0:05:41]} gxf5 {[%emt 0:00:55]} 20. Bb6 {[%emt 0:06:02]} Qd7 {[%emt 0:02:31]} 21. Bxc6 {[%emt 0:02:30]} bxc6 {[%emt 0:00:15]} 22. d4 {[%emt 0:00:06]} e4 {[%emt 0:06:38]} 23. Qe2 {[%emt 0:04:52]} Qf7 {[%emt 0:01:03]} 24. f3 {[%emt 0:03:38]} Bc4 {[%emt 0:00:29]} 25. Qf2 {[%emt 0:00:05]} Qg6 {[%emt 0:05:14]} 26. f4 {[%emt 0:00:36]} Rfe8 {[%emt 0:01:18]} 27. Re3 {[%emt 0:01:32]} c5 {[%emt 0:02:55]} 28. Nc2 {[%emt 0:00:43]} Qh5 {[%emt 0:01:38]} 29. Ra1 {[%emt 0:00:14]} Bb3 {[%emt 0:02:16]} 30. Rh3 {[%emt 0:01:12]} Qf7 {[%emt 0:00:08]} 31. Ne3 {[%emt 0:00:11]} Re6 {[%emt 0:00:46]} 32. Qb2 {[%emt 0:02:57]} Rg6 {[%emt 0:01:40]} 33. Qf2 {[%emt 0:02:16]} Bc4 {[%emt 0:00:32]} 34. Rg3 {[%emt 0:01:11]} Be6 {[%emt 0:00:47]} 35. Rb1 {[%emt 0:00:54]} Ba2 {[%emt 0:00:34]} 36. Ra1 {[%emt 0:00:28]} Be6 {[%emt 0:00:01]} 37. Rb1 {[%emt 0:00:01]} Bf6 {[%emt 0:00:48]} 38. Nf1 {[%emt 0:01:10]} Qg7 {[%emt 0:00:27]} 39. Rxg6 {[%emt 0:01:01]} hxg6 {[%emt 0:00:01]} 40. Rd1 {[%emt 0:00:16]} Bb3 {[%emt 0:01:30]} 41. Rb1 {[%emt 0:30:37]} Bc4 {[%emt 0:30:44]} 42. Nd2 {[%emt 0:00:48]} Bd3 {[%emt 0:00:32]} 43. Re1 {[%emt 0:00:02]} cxd4 {[%emt 0:00:00]} 44. cxd4 {[%emt 0:00:00]} Rc2 {[%emt 0:00:00]} 45. Rd1 {[%emt 0:00:00]} Qf7 {[%emt 0:00:00]} 46. Qe3 {[%emt 0:00:00]} Qa2 {[%emt 0:00:00]} 47. Qg3 {[%emt 0:00:00]} Kg7 {[%emt 0:00:00]} 48. Nf1 {[%emt 0:00:00]} Bxf1 {[%emt 0:00:00]} 49. Rxf1 {[%emt 0:00:00]} Qc4 {[%emt 0:00:00]} 50. h4 {[%emt 0:00:00]} Qe2 {[%emt 0:00:00]} 51. d5 {[%emt 0:00:00]} Rd2 {[%emt 0:00:00]} 52. Re1 {[%emt 0:00:00]} Rd1 {[%emt 0:00:00]} 53. Rxd1 {[%emt 0:00:00]} Qxd1+ {[%emt 0:00:00]} 54. Kh2 {[%emt 0:00:00]} Kh6 {[%emt 0:00:00]} 55. Qe3 {[%emt 0:00:00]} Qxd5 {[%emt 0:00:09]} 56. Bc7 {[%emt 0:00:00]} Qc5 {[%emt 0:01:16]} 0-1

[Event "British Championship 2024"]
[Site "Hull"]
[Date "2024.07.31"]
[Round "1.24"]
[White "Kanyamarala, Tarun"]
[Black "Khoury, Theo"]
[Result "1-0"]
[Annotator "RC"]
[ECO "D32"]
[WhiteElo "2333"]
[BlackElo "2057"]
[PlyCount "51"]
[EventDate "2024.07.31"]
[EventCountry "GBR"]
[SourceTitle "playchess.com"]
[Source "ChessBase"]
[SourceQuality "1"]
[TimeControl "40/5400+30:1800+30"]

1. Nf3 {[%emt 0:00:04]} d5 {[%emt 0:00:15]} 2. e3 {[%emt 0:00:09]} Nf6 {[%emt 0:00:29]} 3. c4 {[%emt 0:00:13]} e6 {[%emt 0:00:10]} 4. Nc3 {[%emt 0:01:00]} Be7 {[%emt 0:00:07]} 5. b3 {[%emt 0:00:29]} O-O {[%emt 0:01:11]} 6. Bb2 {[%emt 0:00:14]} c5 {[%emt 0:04:49]} 7. cxd5 {[%emt 0:00:16]} exd5 {[%emt 0:00:29]} 8. d4 {[%emt 0:00:17]} Nc6 {[%emt 0:01:20]} 9. Be2 {[%emt 0:05:00]} Bg4 {[%emt 0:04:28]} 10. dxc5 {[%emt 0:01:46]} Bxc5 {[%emt 0:00:53]} 11. O-O {[%emt 0:01:21]} Re8 {[%emt 0:02:20]} 12. Nb5 {[%emt 0:01:58]} Ne4 {[%emt 0:01:49]} 13. Nbd4 {[%emt 0:06:35]} Rc8 {[%emt 0:03:52]} 14. h3 {[%emt 0:04:12]} Bh5 {[%emt 0:02:37]} 15. Rc1 {[%emt 0:02:48]} Bg6 {[%emt 0:14:41]} 16. a3 {[%emt 0:08:14]} Bd6 {[%emt 0:03:43]} 17. b4 {[%emt 0:01:42]} Qe7 {[%emt 0:02:44]} 18. Bb5 {[%emt 0:07:26]} Qd7 {[%emt 0:07:46]} 19. Qa4 {[%emt 0:11:48]} Bb8 {[%emt 0:22:33]} 20. Nxc6 {[%emt 0:04:19]} bxc6 {[%emt 0:00:15]} 21. Bxc6 {[%emt 0:00:42]} Qd6 {[%emt 0:01:22]} 22. Bxe8 {[%emt 0:03:44]} Nd2 {[%emt 0:00:11]} 23. Bxf7+ {[%emt 0:03:06]} Kxf7 {[%emt 0:01:29]} 24. Ne5+ {[%emt 0:00:11]} Ke7 {[%emt 0:00:25]} 25. Rxc8 {[%emt 0:00:17]} Nxf1 {[%emt 0:00:09]} 26. Rxb8 {[%emt 0:00:47]} 1-0

[Event "British Championship 2024"]
[Site "Hull"]
[Date "2024.07.31"]
[Round "1.25"]
[White "Saunders, Aron"]
[Black "Eggleston, David J"]
[Result "1-0"]
[Annotator "RC"]
[ECO "B51"]
[WhiteElo "2105"]
[BlackElo "2335"]
[PlyCount "123"]
[EventDate "2024.07.31"]
[EventCountry "GBR"]
[SourceTitle "playchess.com"]
[Source "ChessBase"]
[SourceQuality "1"]
[TimeControl "40/5400+30:1800+30"]

1. e4 {[%emt 0:00:04]} c5 {[%emt 0:00:09]} 2. Nf3 {[%emt 0:00:05]} d6 {[%emt 0:00:04]} 3. Bb5+ {[%emt 0:00:06]} Nd7 {[%emt 0:00:05]} 4. a4 {[%emt 0:00:06]} Ngf6 {[%emt 0:01:11]} 5. Nc3 {[%emt 0:00:48]} e6 {[%emt 0:04:33]} 6. d4 {[%emt 0:09:39]} cxd4 {[%emt 0:00:22]} 7. Qxd4 {[%emt 0:00:08]} Be7 {[%emt 0:00:27]} 8. a5 {[%emt 0:01:31]} a6 {[%emt 0:01:21]} 9. Be2 {[%emt 0:00:55]} O-O {[%emt 0:02:52]} 10. O-O {[%emt 0:01:29]} Qc7 {[%emt 0:06:33]} 11. Rd1 {[%emt 0:05:11]} Ne5 {[%emt 0:01:31]} 12. Be3 {[%emt 0:09:43]} Nfd7 {[%emt 0:05:05]} 13. Nxe5 {[%emt 0:12:16]} Nxe5 {[%emt 0:09:33]} 14. Qb6 {[%emt 0:08:13]} Qb8 {[%emt 0:02:50]} 15. Qb3 {[%emt 0:02:37]} Bd7 {[%emt 0:02:30]} 16. Na4 {[%emt 0:03:08]} Bxa4 {[%emt 0:00:29]} 17. Rxa4 {[%emt 0:00:22]} Nc6 {[%emt 0:02:54]} 18. c3 {[%emt 0:03:50]} Rd8 {[%emt 0:02:47]} 19. Raa1 {[%emt 0:02:53]} Rd7 {[%emt 0:07:09]} 20. Qa2 {[%emt 0:01:21]} Qf8 {[%emt 0:05:43]} 21. b4 {[%emt 0:01:05]} g6 {[%emt 0:05:57]} 22. Qb3 {[%emt 0:02:20]} Qg7 {[%emt 0:04:08]} 23. b5 {[%emt 0:06:26]} axb5 {[%emt 0:00:28]} 24. Bxb5 {[%emt 0:00:07]} Rc8 {[%emt 0:05:20]} 25. a6 {[%emt 0:01:28]} bxa6 {[%emt 0:00:31]} 26. Rxa6 {[%emt 0:05:15]} Rb7 {[%emt 0:07:29]} 27. Qc4 {[%emt 0:00:17]} d5 {[%emt 0:03:22]} 28. exd5 {[%emt 0:01:10]} exd5 {[%emt 0:00:48]} 29. Rxd5 {[%emt 0:03:33]} Rxb5 {[%emt 0:12:52]} 30. Qxb5 {[%emt 0:02:10]} Qxc3 {[%emt 0:01:45]} 31. Rd1 {[%emt 0:00:19]} Qc2 {[%emt 0:02:34]} 32. Qf1 {[%emt 0:03:13]} Nb4 {[%emt 0:00:38]} 33. Raa1 {[%emt 0:03:23]} Qe4 {[%emt 0:00:25]} 34. Rac1 {[%emt 0:01:05]} Re8 {[%emt 0:00:46]} 35. Rd4 {[%emt 0:00:53]} Qf5 {[%emt 0:00:58]} 36. Qc4 {[%emt 0:01:03]} Bf8 {[%emt 0:01:00]} 37. Bd2 {[%emt 0:01:52]} Rb8 {[%emt 0:00:24]} 38. Qc7 {[%emt 0:01:39]} Na6 {[%emt 0:00:39]} 39. Qc4 {[%emt 0:01:23]} Nb4 {[%emt 0:00:46]} 40. Bf4 {[%emt 0:02:38]} Re8 {[%emt 0:00:52]} 41. h3 {[%emt 0:33:45]} h5 {[%emt 0:03:05]} 42. Bd6 {[%emt 0:00:00]} Bxd6 {[%emt 0:09:08]} 43. Rxd6 {[%emt 0:00:00]} Nc2 {[%emt 0:01:43]} 44. Rc6 {[%emt 0:00:00]} Na3 {[%emt 0:02:44]} 45. Qa6 {[%emt 0:00:00]} Nb5 {[%emt 0:02:28]} 46. Rc8 {[%emt 0:00:00]} Nd6 {[%emt 0:00:31]} 47. Rxe8+ {[%emt 0:00:00]} Nxe8 {[%emt 0:00:04]} 48. Re1 {[%emt 0:00:00]} Nf6 {[%emt 0:01:17]} 49. Qa8+ {[%emt 0:00:00]} Kg7 {[%emt 0:01:49]} 50. Qa7 {[%emt 0:00:00]} Qd5 {[%emt 0:01:51]} 51. Qe3 {[%emt 0:00:00]} Kh7 {[%emt 0:00:45]} 52. Rc1 {[%emt 0:00:00]} Qf5 {[%emt 0:00:34]} 53. Qd4 {[%emt 0:00:00]} Nd5 {[%emt 0:02:31]} 54. Rc5 {[%emt 0:00:00]} Qb1+ {[%emt 0:01:27]} 55. Kh2 {[%emt 0:00:00]} Qb8+ {[%emt 0:02:47]} 56. g3 {[%emt 0:00:00]} Ne7 {[%emt 0:02:08]} 57. Qf6 {[%emt 0:00:00]} Nf5 {[%emt 0:00:10]} 58. Qxf7+ {[%emt 0:00:33]} Kh6 {[%emt 0:00:25]} 59. Rxf5 {[%emt 0:00:48]} gxf5 {[%emt 0:00:07]} 60. Qf6+ {[%emt 0:00:04]} Kh7 {[%emt 0:00:10]} 61. Qxf5+ {[%emt 0:00:07]} Kh6 {[%emt 0:00:17]} 62. Qf4+ {[%emt 0:00:36]} 1-0

[Event "British Championship 2024"]
[Site "Hull"]
[Date "2024.07.31"]
[Round "1.26"]
[White "Ledger, Andrew J"]
[Black "Verma, Shlok"]
[Result "1-0"]
[Annotator "RC"]
[ECO "D20"]
[WhiteElo "2334"]
[BlackElo "2102"]
[PlyCount "41"]
[EventDate "2024.07.31"]
[EventCountry "GBR"]
[SourceTitle "playchess.com"]
[Source "ChessBase"]
[SourceQuality "1"]
[TimeControl "40/5400+30:1800+30"]

1. d4 {[%emt 0:00:11]} d5 {[%emt 0:00:09]} 2. c4 {[%emt 0:00:16]} dxc4 {[%emt 0:00:07]} 3. e4 {[%emt 0:00:27]} e5 {[%emt 0:00:19]} 4. Nf3 {[%emt 0:00:29]} exd4 {[%emt 0:00:21]} 5. Bxc4 {[%emt 0:00:23]} Nc6 {[%emt 0:00:23]} 6. O-O {[%emt 0:00:39]} Be6 {[%emt 0:00:07]} 7. Bb5 {[%emt 0:00:43]} Bd7 {[%emt 0:19:28]} 8. Bxc6 {[%emt 0:04:27]} Bxc6 {[%emt 0:00:25]} 9. Nxd4 {[%emt 0:00:19]} Qd7 {[%emt 0:04:28]} 10. Nxc6 {[%emt 0:03:43]} Qxc6 {[%emt 0:00:20]} 11. Nc3 {[%emt 0:01:29]} Nf6 {[%emt 0:30:51]} 12. Bg5 {[%emt 0:09:27]} Be7 {[%emt 0:04:31]} 13. Nd5 {[%emt 0:10:05]} Nxd5 {[%emt 0:02:43]} 14. exd5 {[%emt 0:02:31]} Qd7 {[%emt 0:02:22]} 15. Bxe7 {[%emt 0:03:44]} Kxe7 {[%emt 0:00:01]} 16. Re1+ {[%emt 0:12:33]} Kd8 {[%emt 0:03:21]} 17. Qd4 {[%emt 0:03:02]} f6 {[%emt 0:29:04]} 18. Re6 {[%emt 0:04:17]} a5 {[%emt 0:00:00]} 19. Rae1 {[%emt 0:01:31]} Kc8 {[%emt 0:00:00]} 20. Re7 {[%emt 0:02:56]} Qd8 {[%emt 0:00:00]} 21. Qa4 {[%emt 0:04:10]} 1-0

[Event "British Championship 2024"]
[Site "Hull"]
[Date "2024.07.31"]
[Round "1.27"]
[White "Arnott, Jonathan W"]
[Black "Wu, Li"]
[Result "0-1"]
[Annotator "RC"]
[ECO "B12"]
[WhiteElo "2104"]
[BlackElo "2328"]
[PlyCount "66"]
[EventDate "2024.07.31"]
[EventCountry "GBR"]
[SourceTitle "playchess.com"]
[Source "ChessBase"]
[SourceQuality "1"]
[TimeControl "40/5400+30:1800+30"]

1. e4 {[%emt 0:09:01]} c6 {[%emt 0:00:28]} 2. d4 {[%emt 0:01:34]} d5 {[%emt 0:00:05]} 3. e5 {[%emt 0:00:04]} Bf5 {[%emt 0:00:07]} 4. Nd2 {[%emt 0:00:06]} e6 {[%emt 0:00:12]} 5. Nb3 {[%emt 0:00:04]} Nd7 {[%emt 0:00:13]} 6. Nf3 {[%emt 0:00:33]} a6 {[%emt 0:00:44]} 7. Be3 {[%emt 0:00:44]} c5 {[%emt 0:01:06]} 8. dxc5 {[%emt 0:02:37]} Bg4 {[%emt 0:01:02]} 9. Qd4 {[%emt 0:05:30]} Bxf3 {[%emt 0:00:06]} 10. gxf3 {[%emt 0:00:03]} Ne7 {[%emt 0:00:06]} 11. Qa4 {[%emt 0:00:44]} Nf5 {[%emt 0:08:36]} 12. O-O-O {[%emt 0:11:18]} Qc8 {[%emt 0:06:02]} 13. Bh3 {[%emt 0:02:22]} Nxe3 {[%emt 0:03:46]} 14. fxe3 {[%emt 0:00:05]} Qc6 {[%emt 0:00:10]} 15. Qxc6 {[%emt 0:03:37]} bxc6 {[%emt 0:00:04]} 16. f4 {[%emt 0:00:07]} Nxc5 {[%emt 0:07:41]} 17. Nxc5 {[%emt 0:04:01]} Bxc5 {[%emt 0:00:05]} 18. Rhe1 {[%emt 0:01:07]} Ke7 {[%emt 0:03:47]} 19. Rd3 {[%emt 0:03:57]} Rhb8 {[%emt 0:09:01]} 20. Rb3 {[%emt 0:05:52]} a5 {[%emt 0:04:05]} 21. Rxb8 {[%emt 0:02:33]} Rxb8 {[%emt 0:00:05]} 22. c3 {[%emt 0:00:03]} g5 {[%emt 0:07:58]} 23. f5 {[%emt 0:05:31]} h5 {[%emt 0:02:33]} 24. e4 {[%emt 0:04:57]} g4 {[%emt 0:08:26]} 25. Bf1 {[%emt 0:03:06]} h4 {[%emt 0:01:18]} 26. fxe6 {[%emt 0:02:28]} fxe6 {[%emt 0:01:42]} 27. exd5 {[%emt 0:00:07]} cxd5 {[%emt 0:00:07]} 28. c4 {[%emt 0:03:31]} Rf8 {[%emt 0:04:22]} 29. cxd5 {[%emt 0:02:47]} exd5 {[%emt 0:00:23]} 30. Bg2 {[%emt 0:00:16]} Ke6 {[%emt 0:00:26]} 31. Re2 {[%emt 0:02:45]} h3 {[%emt 0:00:19]} 32. Kd2 {[%emt 0:01:03]} hxg2 {[%emt 0:00:11]} 33. Rxg2 {[%emt 0:00:04]} Rf2+ {[%emt 0:00:05]} 0-1

[Event "British Championship 2024"]
[Site "Hull"]
[Date "2024.07.31"]
[Round "1.28"]
[White "Davies, Nigel R"]
[Black "Pal, Rohan"]
[Result "1-0"]
[Annotator "RC"]
[ECO "D35"]
[WhiteElo "2325"]
[BlackElo "2097"]
[PlyCount "85"]
[EventDate "2024.07.31"]
[EventCountry "GBR"]
[SourceTitle "playchess.com"]
[Source "ChessBase"]
[SourceQuality "1"]
[TimeControl "40/5400+30:1800+30"]

1. d4 {[%emt 0:00:04]} d5 {[%emt 0:00:03]} 2. Nf3 {[%emt 0:00:17]} Nf6 {[%emt 0:00:06]} 3. c4 {[%emt 0:00:04]} e6 {[%emt 1:31:51]} 4. Nc3 {[%emt 0:00:52]} Be7 {[%emt 0:00:00]} 5. cxd5 {[%emt 0:00:24]} exd5 {[%emt 0:00:00]} 6. Bf4 {[%emt 0:00:42]} c6 {[%emt 0:00:00]} 7. e3 {[%emt 0:02:13]} Bf5 {[%emt 0:00:00]} 8. Nh4 {[%emt 0:01:09]} Bg4 {[%emt 0:00:00]} 9. Be2 {[%emt 0:19:49]} Bxe2 {[%emt 0:00:00]} 10. Qxe2 {[%emt 0:00:05]} g6 {[%emt 0:00:00]} 11. Bh6 {[%emt 0:04:12]} Bf8 {[%emt 0:00:00]} 12. Bxf8 {[%emt 0:01:20]} Kxf8 {[%emt 0:00:00]} 13. O-O {[%emt 0:01:24]} Kg7 {[%emt 0:00:00]} 14. f4 {[%emt 0:02:54]} Ne8 {[%emt 0:00:00]} 15. Qf2 {[%emt 0:07:09]} Nd7 {[%emt 0:00:00]} 16. e4 {[%emt 0:13:11]} dxe4 {[%emt 0:00:00]} 17. Nxe4 {[%emt 0:00:07]} Nef6 {[%emt 0:00:00]} 18. Ng5 {[%emt 0:00:22]} Nb6 {[%emt 0:00:00]} 19. Nhf3 {[%emt 0:10:24]} h6 {[%emt 0:00:00]} 20. Ne5 {[%emt 0:00:11]} Rf8 {[%emt 0:00:00]} 21. Ngf3 {[%emt 0:03:12]} Ne4 {[%emt 0:09:00]} 22. Qc2 {[%emt 0:00:34]} f5 {[%emt 0:00:00]} 23. g4 {[%emt 0:07:15]} Nd6 {[%emt 0:00:00]} 24. Kh1 {[%emt 0:00:33]} Kh7 {[%emt 0:00:00]} 25. Rg1 {[%emt 0:01:14]} Rg8 {[%emt 0:00:00]} 26. Rg3 {[%emt 0:03:57]} Ne4 {[%emt 0:00:00]} 27. Rh3 {[%emt 0:02:08]} Qe7 {[%emt 0:00:00]} 28. gxf5 {[%emt 0:08:20]} gxf5 {[%emt 0:00:00]} 29. Ng5+ {[%emt 0:00:12]} Rxg5 {[%emt 0:00:00]} 30. fxg5 {[%emt 0:00:06]} Qxg5 {[%emt 0:00:00]} 31. Rg1 {[%emt 0:00:18]} Qf4 {[%emt 0:00:00]} 32. Rf3 {[%emt 0:00:16]} Qh4 {[%emt 0:00:23]} 33. Rxf5 {[%emt 0:01:22]} Rg8 {[%emt 0:01:58]} 34. Rf7+ {[%emt 0:01:37]} Kh8 {[%emt 0:00:05]} 35. Rxg8+ {[%emt 0:02:06]} Kxg8 {[%emt 0:00:05]} 36. Rf8+ {[%emt 0:01:38]} Kg7 {[%emt 0:00:24]} 37. Rf7+ {[%emt 0:00:11]} Kg8 {[%emt 0:00:06]} 38. Qg2+ {[%emt 0:00:24]} Ng5 {[%emt 0:00:09]} 39. Nf3 {[%emt 0:02:51]} Qh5 {[%emt 0:01:23]} 40. Nxg5 {[%emt 0:00:07]} hxg5 {[%emt 0:00:05]} 41. Rf5 {[%emt 0:30:29]} Qd1+ {[%emt 0:30:28]} 42. Rf1 {[%emt 0:00:26]} Qh5 {[%emt 0:00:12]} 43. Rg1 {[%emt 0:01:18]} 1-0

[Event "British Championship 2024"]
[Site "Hull"]
[Date "2024.07.31"]
[Round "1.29"]
[White "Verbytski, Oleg"]
[Black "Yao, Lan"]
[Result "0-1"]
[Annotator "RC"]
[ECO "B92"]
[WhiteElo "2008"]
[BlackElo "2325"]
[PlyCount "60"]
[EventDate "2024.07.31"]
[EventCountry "GBR"]
[SourceTitle "playchess.com"]
[Source "ChessBase"]
[SourceQuality "1"]
[TimeControl "40/5400+30:1800+30"]

1. e4 {[%emt 0:00:01]} c5 {[%emt 0:00:08]} 2. Nf3 {[%emt 0:00:06]} d6 {[%emt 0:00:07]} 3. d4 {[%emt 0:00:05]} cxd4 {[%emt 0:00:04]} 4. Nxd4 {[%emt 0:00:06]} Nf6 {[%emt 0:00:04]} 5. Nc3 {[%emt 0:00:08]} a6 {[%emt 0:00:13]} 6. Be2 {[%emt 0:01:46]} e5 {[%emt 0:00:09]} 7. Nb3 {[%emt 0:00:10]} Be7 {[%emt 0:00:04]} 8. Be3 {[%emt 0:00:34]} Be6 {[%emt 0:00:16]} 9. O-O {[%emt 0:00:45]} O-O {[%emt 0:00:08]} 10. Bf3 {[%emt 0:10:35]} Nbd7 {[%emt 0:00:21]} 11. a4 {[%emt 0:01:13]} Rc8 {[%emt 0:00:46]} 12. Rc1 {[%emt 0:18:14]} h6 {[%emt 0:15:26]} 13. Qd2 {[%emt 0:11:02]} Nb6 {[%emt 0:05:45]} 14. Bxb6 {[%emt 0:01:50]} Qxb6 {[%emt 0:00:02]} 15. Nd5 {[%emt 0:00:20]} Nxd5 {[%emt 0:03:30]} 16. exd5 {[%emt 0:00:47]} Bg5 {[%emt 0:04:14]} 17. Qd3 {[%emt 0:04:28]} Bd7 {[%emt 0:01:29]} 18. Ra1 {[%emt 0:01:37]} f5 {[%emt 0:05:03]} 19. Qd1 {[%emt 0:06:10]} Qd8 {[%emt 0:25:24]} 20. Kh1 {[%emt 0:06:09]} a5 {[%emt 0:05:22]} 21. Nd2 {[%emt 0:04:25]} Qc7 {[%emt 0:08:54]} 22. c3 {[%emt 0:06:21]} Qb6 {[%emt 0:01:23]} 23. Ra2 {[%emt 0:15:25]} Rc5 {[%emt 0:02:08]} 24. Be2 {[%emt 0:02:12]} Rfc8 {[%emt 0:10:13]} 25. c4 {[%emt 0:01:45]} Qb4 {[%emt 0:01:22]} 26. b3 {[%emt 0:00:28]} Rf8 {[%emt 0:01:00]} 27. Nf3 {[%emt 0:03:08]} Bf6 {[%emt 0:00:16]} 28. Ne1 {[%emt 0:02:08]} Rcc8 {[%emt 0:02:06]} 29. Nc2 {[%emt 0:01:02]} Qxb3 {[%emt 0:00:46]} 30. Ne3 {[%emt 0:01:06]} Qxa2 {[%emt 0:00:17]} 0-1